[Event "XIII Mediterranean Championship 2023"]
[Site "Castell-Platja d Aro"]
[Date "2023.11.04"]
[Round "1.19"]
[White "Martin Barcelo, Carles"]
[Black "Diaz Comas, Jordi"]
[Result "1-0"]
[ECO "C77"]
[WhiteElo "2242"]
[BlackElo "1837"]
[Annotator "ChessBase"]
[PlyCount "81"]
[EventDate "2023.10.26"]
[EventType "swiss"]
[EventCountry "ESP"]
[SourceTitle "playchess.com"]
[Source "ChessBase"]
[SourceQuality "1"]
[TimeControl "5400+30"]

1. e4 {[%emt 0:00:13]} Nc6 {[%emt 0:00:13]} 2. Nf3 {[%emt 0:00:32]} e5 {[%emt 0:00:45]} 3. Bb5 {[%emt 0:01:53]} a6 {[%emt 0:00:54]} 4. Ba4 {[%emt 0:00:41]} b5 {[%emt 0:02:49]} 5. Bb3 {[%emt 0:00:07]} Nf6 {[%emt 0:00:10]} 6. d3 {[%emt 0:04:48]} Be7 {[%emt 0:03:32]} 7. O-O {[%emt 0:01:57]} d6 {[%emt 0:03:04]} 8. a3 {[%emt 0:00:58]} O-O {[%emt 0:01:21]} 9. Nc3 {[%emt 0:00:09]} Na5 {[%emt 0:01:48]} 10. Ba2 {[%emt 0:00:08]} c5 {[%emt 0:00:30]} 11. Nd5 {[%emt 0:00:30]} Nxd5 {[%emt 0:01:15]} 12. Bxd5 {[%emt 0:00:00]} Bb7 {[%emt 0:01:21]} 13. b4 {[%emt 0:00:52]} Bxd5 {[%emt 0:02:09]} 14. exd5 {[%emt 0:00:10]} Nb7 {[%emt 0:01:53]} 15. c3 {[%emt 0:05:49]} Bf6 {[%emt 0:03:51]} 16. Be3 {[%emt 0:03:45]} Rc8 {[%emt 0:06:27]} 17. Nd2 {[%emt 0:01:58]} Bg5 {[%emt 0:03:37]} 18. Qe2 {[%emt 0:01:26]} f5 {[%emt 0:06:17]} 19. Nf3 {[%emt 0:03:08]} Bf6 {[%emt 0:03:04]} 20. Ra2 {[%emt 0:05:22]} Qe7 {[%emt 0:07:24]} 21. a4 {[%emt 0:02:06]} c4 {[%emt 0:03:28]} 22. dxc4 {[%emt 0:06:31]} Rxc4 {[%emt 0:01:12]} 23. axb5 {[%emt 0:00:15]} axb5 {[%emt 0:00:04]} 24. Ra7 {[%emt 0:03:06]} Qd7 {[%emt 0:06:15]} 25. Bg5 {[%emt 0:05:35]} h6 {[%emt 0:02:51]} 26. Bxf6 {[%emt 0:00:22]} Rxf6 {[%emt 0:00:02]} 27. Qe3 {[%emt 0:01:48]} Qc7 {[%emt 0:02:08]} 28. Nd2 {[%emt 0:01:57]} Rg4 {[%emt 0:03:35]} 29. h3 {[%emt 0:48:54]} Rh4 {[%emt 0:04:38]} 30. Rfa1 {[%emt 0:00:00]} Rf7 {[%emt 0:03:27]} 31. Qg3 {[%emt 0:00:00]} Qe7 {[%emt 0:06:02]} 32. Rxb7 {[%emt 0:00:00]} Qxb7 {[%emt 0:00:34]} 33. Qxh4 {[%emt 0:00:00]} Qxd5 {[%emt 0:00:33]} 34. Nf3 {[%emt 0:00:00]} Qc6 {[%emt 0:01:29]} 35. Ra3 {[%emt 0:00:00]} Rf6 {[%emt 0:01:51]} 36. Qh5 {[%emt 0:00:00]} Kh7 {[%emt 0:02:39]} 37. Ra7 {[%emt 0:00:00]} Qc8 {[%emt 0:02:03]} 38. Rf7 {[%emt 0:00:00]} Rxf7 {[%emt 0:03:10]} 39. Ng5+ {[%emt 0:00:00]} Kg8 {[%emt 0:01:11]} 40. Qxf7+ {[%emt 0:00:00]} Kh8 {[%emt 0:00:21]} 41. Ne6 {[%emt 0:00:00]} 1-0

[Event "XIII Mediterranean Championship 2023"]
[Site "Castell-Platja d Aro"]
[Date "2023.11.04"]
[Round "1.20"]
[White "Parramon Arimany, Marc"]
[Black "Vehi Bach, Victor Manuel"]
[Result "0-1"]
[ECO "D02"]
[WhiteElo "1834"]
[BlackElo "2216"]
[Annotator "ChessBase"]
[PlyCount "46"]
[EventDate "2023.10.26"]
[EventType "swiss"]
[EventCountry "ESP"]
[SourceTitle "playchess.com"]
[Source "ChessBase"]
[SourceQuality "1"]
[TimeControl "5400+30"]

1. d4 {[%emt 0:00:08]} Nf6 {[%emt 0:00:13]} 2. Nf3 {[%emt 0:00:23]} e6 {[%emt 0:00:28]} 3. Bf4 {[%emt 0:01:22]} c5 {[%emt 0:03:56]} 4. c3 {[%emt 0:01:01]} Nc6 {[%emt 0:03:23]} 5. e3 {[%emt 0:00:29]} d5 {[%emt 0:01:19]} 6. Nbd2 {[%emt 0:01:26]} Bd6 {[%emt 0:13:32]} 7. g3 {[%emt 0:02:22]} Be7 {[%emt 0:11:48]} 8. a3 {[%emt 0:04:54]} O-O {[%emt 0:05:17]} 9. h4 {[%emt 0:09:58]} c4 {[%emt 0:15:24]} 10. Qc2 {[%emt 0:05:41]} b5 {[%emt 0:00:59]} 11. Bh3 {[%emt 0:04:16]} a5 {[%emt 0:02:50]} 12. g4 {[%emt 0:08:00]} Bd7 {[%emt 0:01:48]} 13. Ne5 {[%emt 0:05:17]} Be8 {[%emt 0:02:30]} 14. g5 {[%emt 0:04:32]} Nxe5 {[%emt 0:01:11]} 15. dxe5 {[%emt 0:02:12]} Nd7 {[%emt 0:00:16]} 16. Nf3 {[%emt 0:02:27]} Nc5 {[%emt 0:02:28]} 17. Rd1 {[%emt 0:01:30]} b4 {[%emt 0:02:08]} 18. O-O {[%emt 0:15:06]} Ba4 {[%emt 0:00:46]} 19. Qb1 {[%emt 0:00:49]} Bxd1 {[%emt 0:00:07]} 20. Rxd1 {[%emt 0:00:25]} bxa3 {[%emt 0:00:09]} 21. Nd4 {[%emt 0:08:09]} axb2 {[%emt 0:06:12]} 22. Bh2 {[%emt 0:03:46]} Qb6 {[%emt 0:02:45]} 23. f4 {[%emt 0:01:26]} Ne4 {[%emt 0:01:55]} 0-1

[Event "XIII Mediterranean Championship 2023"]
[Site "Castell-Platja d Aro"]
[Date "2023.11.04"]
[Round "1.21"]
[White "Rojano Alfonso, Carlos"]
[Black "Garcia Rodriguez, Laia"]
[Result "1-0"]
[ECO "A11"]
[WhiteElo "2207"]
[BlackElo "1811"]
[Annotator "ChessBase"]
[PlyCount "35"]
[EventDate "2023.10.26"]
[EventType "swiss"]
[EventCountry "ESP"]
[SourceTitle "playchess.com"]
[Source "ChessBase"]
[SourceQuality "1"]
[TimeControl "5400+30"]

1. Nf3 {[%emt 1:31:00]} d5 {[%emt 1:31:00]} 2. b3 {[%emt 0:00:30]} Nf6 {[%emt 0:00:30]} 3. Bb2 {[%emt 0:00:30]} e6 {[%emt 0:00:30]} 4. e3 {[%emt 0:00:30]} Bd6 {[%emt 0:00:30]} 5. c4 {[%emt 0:00:30]} O-O {[%emt 0:00:30]} 6. Qc2 {[%emt 0:00:30]} Nbd7 {[%emt 0:00:30]} 7. Nc3 {[%emt 0:00:30]} c6 {[%emt 0:00:30]} 8. Be2 {[%emt 0:00:30]} b6 {[%emt 0:00:30]} 9. Rg1 {[%emt 0:00:30]} Bb7 {[%emt 0:00:30]} 10. g4 {[%emt 0:00:30]} dxc4 {[%emt 0:00:30]} 11. bxc4 {[%emt 0:00:30]} c5 {[%emt 0:00:30]} 12. g5 {[%emt 0:00:30]} Ne8 {[%emt 0:00:30]} 13. Ne4 {[%emt 0:00:30]} f5 {[%emt 0:00:30]} 14. gxf6 {[%emt 0:00:30]} Ndxf6 {[%emt 0:00:30]} 15. Nxf6+ {[%emt 0:00:30]} Nxf6 {[%emt 0:00:30]} 16. Ng5 {[%emt 0:00:30]} g6 {[%emt 0:00:30]} 17. Nxh7 {[%emt 0:00:30]} Be4 {[%emt 0:00:30]} 18. Nxf6+ {[%emt 0:00:30]} 1-0

[Event "XIII Mediterranean Championship 2023"]
[Site "Castell-Platja d Aro"]
[Date "2023.11.04"]
[Round "1.22"]
[White "Moran Cabezas, Eric"]
[Black "Hernando Rodrigo, Julio Antonio"]
[Result "1/2-1/2"]
[ECO "C09"]
[WhiteElo "1736"]
[BlackElo "2202"]
[Annotator "ChessBase"]
[PlyCount "79"]
[EventDate "2023.10.26"]
[EventType "swiss"]
[EventCountry "ESP"]
[SourceTitle "playchess.com"]
[Source "ChessBase"]
[SourceQuality "1"]
[TimeControl "5400+30"]

1. e4 {[%emt 0:00:03]} e6 {[%emt 0:00:11]} 2. d4 {[%emt 0:00:10]} d5 {[%emt 0:00:07]} 3. Nd2 {[%emt 0:00:08]} c5 {[%emt 0:00:10]} 4. exd5 {[%emt 0:00:12]} exd5 {[%emt 0:00:07]} 5. Ngf3 {[%emt 0:00:18]} Nc6 {[%emt 0:00:19]} 6. Bb5 {[%emt 0:00:21]} Bd6 {[%emt 0:00:10]} 7. O-O {[%emt 0:00:35]} Nge7 {[%emt 0:00:06]} 8. dxc5 {[%emt 0:00:51]} Bxc5 {[%emt 0:00:06]} 9. Nb3 {[%emt 0:00:16]} Bd6 {[%emt 0:00:06]} 10. Re1 {[%emt 1:32:36]} O-O {[%emt 0:00:11]} 11. c3 {[%emt 0:00:00]} Bf5 {[%emt 1:34:27]} 12. Be3 {[%emt 0:00:00]} Qc7 {[%emt 0:00:00]} 13. Bf1 {[%emt 0:00:00]} Rad8 {[%emt 0:01:00]} 14. Bc5 {[%emt 0:00:00]} Bxc5 {[%emt 0:00:00]} 15. Nxc5 {[%emt 0:00:00]} Bg4 {[%emt 0:00:00]} 16. Nb3 {[%emt 0:00:00]} Qb6 {[%emt 0:01:30]} 17. Be2 {[%emt 0:00:00]} Ng6 {[%emt 0:00:30]} 18. Nfd4 {[%emt 0:04:00]} Bc8 {[%emt 0:00:30]} 19. Qd2 {[%emt 0:00:30]} a5 {[%emt 0:00:30]} 20. a4 {[%emt 0:00:30]} Nce5 {[%emt 0:00:30]} 21. Nb5 {[%emt 0:00:00]} Qf6 {[%emt 0:00:30]} 22. N3d4 {[%emt 0:01:00]} Nf4 {[%emt 0:00:30]} 23. Bf1 {[%emt 0:00:30]} Neg6 {[%emt 0:00:00]} 24. Nf3 {[%emt 0:00:00]} Bg4 {[%emt 0:00:00]} 25. Nbd4 {[%emt 0:00:00]} h5 {[%emt 0:00:00]} 26. Re3 {[%emt 0:00:00]} Bxf3 {[%emt 0:00:00]} 27. Nxf3 {[%emt 0:00:00]} Ne6 {[%emt 0:02:30]} 28. Nd4 {[%emt 0:02:30]} Ngf4 {[%emt 0:00:00]} 29. Rf3 {[%emt 0:00:00]} g5 {[%emt 0:00:00]} 30. g3 {[%emt 0:00:00]} Nxd4 {[%emt 0:00:00]} 31. cxd4 {[%emt 0:00:00]} Nh3+ {[%emt 0:00:00]} 32. Bxh3 {[%emt 0:00:00]} Qxf3 {[%emt 0:00:00]} 33. Qxg5+ {[%emt 0:00:00]} Kh8 {[%emt 0:00:00]} 34. Qh6+ {[%emt 0:00:00]} Kg8 {[%emt 0:00:00]} 35. Qg5+ {[%emt 0:00:00]} Kh8 {[%emt 0:04:00]} 36. Qh6+ {[%emt 0:00:00]} Kg8 {[%emt 0:00:00]} 37. Qg5+ {[%emt 0:00:00]} Kh8 {[%emt 0:01:00]} 38. Re1 Rd6 {[%emt 0:00:30]} 39. Qe7 {[%emt 0:05:30]} Rdd8 {[%emt 0:00:30]} 40. Qg5 {[%emt 0:00:30]} 1/2-1/2

[Event "XIII Mediterranean Championship 2023"]
[Site "Castell-Platja d Aro"]
[Date "2023.11.04"]
[Round "1.23"]
[White "Domene Mulyukov, Alexander"]
[Black "Lunin Bohomolets, Iliia"]
[Result "1-0"]
[ECO "D41"]
[WhiteElo "2198"]
[BlackElo "1850"]
[Annotator "ChessBase"]
[PlyCount "35"]
[EventDate "2023.10.26"]
[EventType "swiss"]
[EventCountry "ESP"]
[SourceTitle "playchess.com"]
[Source "ChessBase"]
[SourceQuality "1"]
[TimeControl "5400+30"]

1. g3 {[%emt 0:00:05]} Nf6 {[%emt 0:00:36]} 2. Bg2 {[%emt 0:00:06]} e6 {[%emt 0:01:00]} 3. Nf3 {[%emt 0:03:34]} c5 {[%emt 0:01:05]} 4. c4 {[%emt 0:01:26]} Nc6 {[%emt 0:01:42]} 5. O-O {[%emt 0:00:34]} Be7 {[%emt 0:01:46]} 6. Nc3 {[%emt 0:00:25]} O-O {[%emt 0:01:00]} 7. d4 {[%emt 0:01:47]} d5 {[%emt 0:05:43]} 8. cxd5 {[%emt 0:00:58]} Nxd5 {[%emt 0:00:44]} 9. Nxd5 {[%emt 0:11:03]} Qxd5 {[%emt 0:03:18]} 10. Be3 {[%emt 0:01:09]} Qf5 {[%emt 0:07:49]} 11. dxc5 {[%emt 0:02:37]} Bxc5 {[%emt 0:15:35]} 12. g4 {[%emt 0:04:58]} Qxg4 {[%emt 0:02:03]} 13. Bxc5 {[%emt 0:00:09]} Rd8 {[%emt 0:00:23]} 14. Qc1 {[%emt 0:00:39]} Rd5 {[%emt 0:00:58]} 15. Rd1 {[%emt 0:02:25]} Rh5 {[%emt 0:01:40]} 16. b4 {[%emt 0:04:57]} Qg6 {[%emt 0:04:10]} 17. Qb1 {[%emt 0:01:29]} f5 {[%emt 0:03:32]} 18. b5 {[%emt 1:01:09]} 1-0

[Event "XIII Mediterranean Championship 2023"]
[Site "Castell-Platja d Aro"]
[Date "2023.11.04"]
[Round "1.24"]
[White "Teixidor Banus, Josep Maria"]
[Black "Valle Luis, Leo"]
[Result "0-1"]
[ECO "D00"]
[WhiteElo "1669"]
[BlackElo "2216"]
[Annotator "ChessBase"]
[PlyCount "72"]
[EventDate "2023.10.26"]
[EventType "swiss"]
[EventCountry "ESP"]
[SourceTitle "playchess.com"]
[Source "ChessBase"]
[SourceQuality "1"]
[TimeControl "5400+30"]

1. d4 {[%emt 0:00:10]} Nf6 {[%emt 0:00:08]} 2. Bf4 {[%emt 0:00:13]} g6 {[%emt 0:00:05]} 3. Nc3 {[%emt 0:00:30]} d5 {[%emt 0:00:30]} 4. e3 {[%emt 0:00:30]} Bg7 {[%emt 0:00:30]} 5. Be2 {[%emt 0:00:03]} c6 {[%emt 0:00:16]} 6. Nf3 {[%emt 0:00:35]} Nbd7 {[%emt 0:00:07]} 7. Ne5 {[%emt 0:03:25]} Nxe5 {[%emt 0:02:10]} 8. Bxe5 {[%emt 0:00:30]} Be6 {[%emt 0:07:38]} 9. O-O {[%emt 0:07:45]} O-O {[%emt 0:11:54]} 10. Bd3 {[%emt 0:23:16]} Rc8 {[%emt 0:09:21]} 11. Na4 {[%emt 0:04:26]} Nd7 {[%emt 0:15:37]} 12. Bxg7 {[%emt 0:55:07]} Kxg7 {[%emt 0:48:14]} 13. b4 {[%emt 0:00:00]} b6 {[%emt 0:00:00]} 14. Qd2 {[%emt 0:00:00]} f6 {[%emt 0:00:00]} 15. f4 {[%emt 0:00:00]} Bf7 {[%emt 0:00:00]} 16. f5 {[%emt 0:00:00]} Re8 {[%emt 0:00:00]} 17. Rf3 {[%emt 0:00:00]} e5 {[%emt 0:00:00]} 18. fxe6 {[%emt 0:00:00]} Bxe6 {[%emt 0:00:00]} 19. e4 {[%emt 0:00:00]} dxe4 {[%emt 0:00:00]} 20. Bxe4 {[%emt 0:00:00]} Ne5 {[%emt 0:00:00]} 21. Rf2 {[%emt 0:00:00]} Ng4 {[%emt 0:00:00]} 22. Re2 {[%emt 0:00:00]} Bc4 {[%emt 0:00:00]} 23. Ree1 {[%emt 0:00:00]} Qd6 {[%emt 0:00:00]} 24. g3 {[%emt 0:00:00]} f5 {[%emt 0:02:52]} 25. Bf3 {[%emt 0:00:00]} Nf6 {[%emt 0:00:49]} 26. c3 {[%emt 0:00:00]} Bd5 {[%emt 0:01:08]} 27. Qf2 {[%emt 0:00:00]} Bxf3 {[%emt 0:00:32]} 28. Qxf3 {[%emt 0:00:00]} Ne4 {[%emt 0:00:04]} 29. g4 {[%emt 0:00:25]} Ng5 {[%emt 0:00:57]} 30. Qg2 {[%emt 0:01:18]} f4 {[%emt 0:00:13]} 31. Nb2 {[%emt 0:04:24]} f3 {[%emt 0:00:52]} 32. Qg3 {[%emt 0:00:27]} Qf6 {[%emt 0:00:13]} 33. Re5 {[%emt 0:01:51]} Ne4 {[%emt 0:01:04]} 34. g5 {[%emt 0:01:57]} f2+ {[%emt 0:00:28]} 35. Kg2 {[%emt 0:00:27]} f1=Q+ {[%emt 0:00:09]} 36. Rxf1 {[%emt 0:00:10]} Qxf1+ {[%emt 0:00:03]} 0-1

[Event "XIII Mediterranean Championship 2023"]
[Site "Castell-Platja d Aro"]
[Date "2023.11.04"]
[Round "1.25"]
[White "Banos, Oscar"]
[Black "Giro Castellet, Esteve"]
[Result "1-0"]
[ECO "E14"]
[WhiteElo "2188"]
[BlackElo "1633"]
[Annotator "ChessBase"]
[PlyCount "56"]
[EventDate "2023.10.26"]
[EventType "swiss"]
[EventCountry "ESP"]
[SourceTitle "playchess.com"]
[Source "ChessBase"]
[SourceQuality "1"]
[TimeControl "5400+30"]

1. Nf3 {[%emt 0:00:05]} d5 {[%emt 0:00:27]} 2. e3 {[%emt 0:00:13]} Nf6 {[%emt 0:00:36]} 3. c4 {[%emt 0:00:09]} e6 {[%emt 0:01:00]} 4. b3 {[%emt 0:00:58]} Be7 {[%emt 0:02:16]} 5. Bb2 {[%emt 0:01:32]} Nbd7 {[%emt 0:01:14]} 6. d4 {[%emt 0:02:28]} b6 {[%emt 0:02:19]} 7. Bd3 {[%emt 0:02:23]} c5 {[%emt 0:02:45]} 8. O-O {[%emt 0:03:13]} O-O {[%emt 0:00:07]} 9. Nc3 {[%emt 0:00:55]} Bb7 {[%emt 0:03:08]} 10. Qe2 {[%emt 0:01:54]} a6 {[%emt 0:01:32]} 11. Rfd1 {[%emt 0:00:46]} Qc7 {[%emt 0:01:06]} 12. Rac1 {[%emt 0:00:44]} dxc4 {[%emt 0:03:37]} 13. bxc4 {[%emt 0:00:21]} cxd4 {[%emt 0:06:15]} 14. exd4 {[%emt 0:00:25]} Bd6 {[%emt 0:08:59]} 15. Ne4 {[%emt 0:14:36]} Bf4 {[%emt 0:03:36]} 16. Rc2 {[%emt 0:01:48]} Nxe4 {[%emt 0:05:38]} 17. Bxe4 {[%emt 0:00:07]} Bxe4 {[%emt 0:00:11]} 18. Qxe4 {[%emt 0:00:09]} Nf6 {[%emt 0:00:24]} 19. Qd3 {[%emt 0:08:05]} Rac8 {[%emt 0:05:38]} 20. g3 {[%emt 0:01:17]} Bd6 {[%emt 0:03:55]} 21. Rdc1 {[%emt 0:05:34]} Qb7 {[%emt 0:03:04]} 22. d5 {[%emt 0:03:51]} Ng4 {[%emt 0:16:04]} 23. Ng5 {[%emt 0:20:58]} g6 {[%emt 0:12:19]} 24. dxe6 {[%emt 0:01:01]} Bc5 {[%emt 0:00:25]} 25. exf7+ {[%emt 0:02:31]} Rxf7 {[%emt 0:03:25]} 26. Nxf7 {[%emt 0:02:41]} Qxf7 {[%emt 0:06:43]} 27. Rf1 {[%emt 0:01:52]} Rf8 {[%emt 0:01:44]} 28. Qc3 {[%emt 0:03:13]} Qb7 {[%emt 0:06:03]} 1-0

[Event "XIII Mediterranean Championship 2023"]
[Site "Castell-Platja d Aro"]
[Date "2023.11.04"]
[Round "1.26"]
[White "Vidal Palou, Jordi"]
[Black "Lever, Erwan"]
[Result "0-1"]
[ECO "A45"]
[WhiteElo "1620"]
[BlackElo "2184"]
[Annotator "ChessBase"]
[PlyCount "84"]
[EventDate "2023.10.26"]
[EventType "swiss"]
[EventCountry "ESP"]
[SourceTitle "playchess.com"]
[Source "ChessBase"]
[SourceQuality "1"]
[TimeControl "5400+30"]

1. d4 {[%emt 1:31:00]} Nf6 {[%emt 1:31:00]} 2. Bf4 {[%emt 0:00:30]} c5 {[%emt 0:00:30]} 3. c3 {[%emt 0:00:30]} Qb6 {[%emt 0:00:30]} 4. Bc1 {[%emt 0:00:30]} d5 {[%emt 0:00:30]} 5. e3 {[%emt 0:00:30]} g6 {[%emt 0:00:30]} 6. Nf3 {[%emt 0:00:30]} Bg7 {[%emt 0:00:30]} 7. Be2 {[%emt 0:00:30]} O-O {[%emt 0:00:30]} 8. O-O {[%emt 0:00:30]} Rd8 {[%emt 0:00:30]} 9. Nbd2 {[%emt 0:00:30]} Nc6 {[%emt 0:00:30]} 10. Qb3 {[%emt 0:00:30]} c4 {[%emt 0:00:30]} 11. Qxb6 {[%emt 0:00:30]} axb6 {[%emt 0:00:30]} 12. b3 {[%emt 0:00:30]} b5 {[%emt 0:00:30]} 13. b4 {[%emt 0:00:30]} Bf5 {[%emt 0:00:30]} 14. Bb2 {[%emt 0:00:30]} Nd7 {[%emt 0:00:30]} 15. Nh4 {[%emt 0:00:30]} Be6 {[%emt 0:00:30]} 16. e4 {[%emt 0:00:30]} Nb6 {[%emt 0:00:30]} 17. Bd1 {[%emt 0:00:30]} dxe4 {[%emt 0:00:30]} 18. Nxe4 {[%emt 0:00:30]} Bd5 {[%emt 0:00:30]} 19. Nc5 {[%emt 0:00:30]} Ra7 {[%emt 0:00:30]} 20. a4 {[%emt 0:00:30]} bxa4 {[%emt 0:00:30]} 21. Bxa4 {[%emt 0:00:30]} Rda8 {[%emt 0:00:30]} 22. Bxc6 {[%emt 0:00:30]} Bxc6 {[%emt 0:00:30]} 23. Rxa7 {[%emt 0:00:30]} Rxa7 {[%emt 0:00:30]} 24. Ra1 {[%emt 0:00:30]} Rxa1+ {[%emt 0:00:30]} 25. Bxa1 {[%emt 0:00:30]} Nd5 {[%emt 0:00:30]} 26. b5 {[%emt 0:00:30]} Bxb5 {[%emt 0:00:30]} 27. Nxb7 {[%emt 0:00:30]} e5 {[%emt 0:00:30]} 28. Nd6 {[%emt 0:00:30]} Ba6 {[%emt 0:00:30]} 29. Nf3 {[%emt 0:00:30]} exd4 {[%emt 0:00:30]} 30. cxd4 {[%emt 0:00:30]} f5 {[%emt 0:00:30]} 31. Ne5 {[%emt 0:00:30]} c3 {[%emt 0:00:30]} 32. g3 {[%emt 0:00:30]} c2 {[%emt 0:00:30]} 33. Bb2 {[%emt 0:00:30]} Nc3 {[%emt 0:00:30]} 34. Ne8 {[%emt 0:00:30]} Ne2+ {[%emt 0:00:30]} 35. Kg2 {[%emt 0:00:30]} c1=Q {[%emt 0:00:30]} 36. Bxc1 {[%emt 0:00:30]} Nxc1 {[%emt 0:00:30]} 37. f4 {[%emt 0:00:30]} Nb3 {[%emt 0:00:30]} 38. d5 {[%emt 0:00:30]} Bb7 {[%emt 0:00:30]} 39. Nc6 {[%emt 0:00:30]} Nd4 {[%emt 0:00:30]} 40. Nb4 {[%emt 0:00:30]} Nb5 {[%emt 0:00:30]} 41. Kf1 {[%emt 0:00:30]} Bc3 {[%emt 0:00:30]} 42. Nc6 {[%emt 0:00:30]} Kf8 {[%emt 0:00:30]} 0-1

[Event "XIII Mediterranean Championship 2023"]
[Site "Castell-Platja d Aro"]
[Date "2023.11.05"]
[Round "2.1"]
[White "Jimenez Ruano, Adrian"]
[Black "Alsina Leal, Daniel"]
[Result "1/2-1/2"]
[ECO "D45"]
[WhiteElo "2281"]
[BlackElo "2531"]
[Annotator "RC"]
[PlyCount "104"]
[EventDate "2023.10.26"]
[EventType "swiss"]
[EventCountry "ESP"]
[SourceTitle "playchess.com"]
[Source "ChessBase"]
[SourceQuality "1"]
[TimeControl "5400+30"]

1. d4 {[%emt 0:00:18]} d5 {[%emt 0:02:23]} 2. c4 {[%emt 0:00:13]} e6 {[%emt 0:00:13]} 3. Nc3 {[%emt 0:02:47]} c6 {[%emt 0:00:27]} 4. Nf3 {[%emt 0:07:06]} Nf6 {[%emt 0:00:25]} 5. e3 {[%emt 0:00:08]} Nbd7 {[%emt 0:00:15]} 6. Qc2 {[%emt 0:01:49]} Bd6 {[%emt 0:00:25]} 7. b3 {[%emt 0:04:44]} O-O {[%emt 0:00:20]} 8. Be2 {[%emt 0:00:04]} b6 {[%emt 0:00:18]} 9. O-O {[%emt 0:00:05]} Bb7 {[%emt 0:00:10]} 10. Bb2 {[%emt 0:00:04]} Qe7 {[%emt 0:00:19]} 11. Rad1 {[%emt 0:00:25]} Rad8 {[%emt 0:00:11]} 12. Rfe1 {[%emt 0:00:05]} Rfe8 {[%emt 0:00:09]} 13. g3 {[%emt 0:04:35]} h6 {[%emt 0:00:27]} 14. Bf1 {[%emt 0:05:54]} Bb4 {[%emt 0:00:15]} 15. a3 {[%emt 0:00:50]} Bxc3 {[%emt 0:00:23]} 16. Bxc3 {[%emt 0:02:25]} Ne4 {[%emt 0:02:27]} 17. Bb2 {[%emt 0:01:12]} c5 {[%emt 0:01:00]} 18. dxc5 {[%emt 0:17:45]} dxc4 {[%emt 0:02:15]} 19. c6 {[%emt 0:11:18]} Bxc6 {[%emt 0:03:38]} 20. Nd4 {[%emt 0:00:05]} Ba8 {[%emt 0:12:31]} 21. bxc4 {[%emt 0:07:07]} Ng5 {[%emt 0:23:03]} 22. h4 {[%emt 0:14:50]} Ne5 {[%emt 0:08:05]} 23. Bg2 {[%emt 0:00:02]} Ngf3+ {[%emt 0:12:45]} 24. Nxf3 {[%emt 0:02:43]} Nxf3+ {[%emt 0:00:09]} 25. Bxf3 {[%emt 0:00:21]} Bxf3 {[%emt 0:00:06]} 26. Qc3 {[%emt 0:01:45]} f6 {[%emt 0:07:48]} 27. Rxd8 {[%emt 0:02:57]} Rxd8 {[%emt 0:01:15]} 28. e4 {[%emt 0:00:07]} Bh5 {[%emt 0:00:41]} 29. e5 {[%emt 0:00:41]} f5 {[%emt 0:00:32]} 30. a4 {[%emt 0:01:56]} f4 {[%emt 0:08:00]} 31. Ba3 {[%emt 0:00:52]} Qf7 {[%emt 0:00:25]} 32. Bd6 {[%emt 0:01:58]} Qg6 {[%emt 0:04:47]} 33. Kh2 {[%emt 0:01:42]} Qg4 {[%emt 0:01:50]} 34. c5 {[%emt 0:06:10]} bxc5 {[%emt 0:00:51]} 35. Qxc5 {[%emt 0:00:29]} fxg3+ {[%emt 0:01:28]} 36. fxg3 {[%emt 0:00:01]} Qxa4 {[%emt 0:00:12]} 37. Rf1 {[%emt 0:00:45]} Qa6 {[%emt 0:00:51]} 38. Rf2 {[%emt 0:01:38]} Rc8 {[%emt 0:01:27]} 39. Qe3 {[%emt 0:01:12]} Bg4 {[%emt 0:02:14]} 40. Qf4 {[%emt 0:00:47]} Bf5 {[%emt 0:00:31]} 41. Rb2 {[%emt 0:00:32]} Qa1 {[%emt 0:01:29]} 42. Rf2 {[%emt 0:00:30]} Rc1 {[%emt 0:00:39]} 43. Qf3 {[%emt 0:00:15]} Qd4 {[%emt 0:00:29]} 44. g4 {[%emt 0:00:37]} Bxg4 {[%emt 0:01:24]} 45. Qf7+ {[%emt 0:00:16]} Kh7 {[%emt 0:00:16]} 46. Qf4 {[%emt 0:00:47]} Qxf4+ {[%emt 0:02:39]} 47. Rxf4 {[%emt 0:00:01]} Bf5 {[%emt 0:00:11]} 48. Ra4 {[%emt 0:00:19]} Rc3 {[%emt 0:01:09]} 49. Kg2 {[%emt 0:00:55]} Rc2+ {[%emt 0:00:30]} 50. Kg3 {[%emt 0:00:17]} Rc3+ {[%emt 0:00:23]} 51. Kg2 {[%emt 0:00:05]} Rh3 {[%emt 0:00:45]} 52. Be7 {[%emt 0:00:37]} Rc3 {[%emt 0:00:31]} 1/2-1/2

[Event "XIII Mediterranean Championship 2023"]
[Site "Castell-Platja d Aro"]
[Date "2023.11.05"]
[Round "2.2"]
[White "Martinez Pla, Xavier"]
[Black "Asis Gargatagli, Hipolito"]
[Result "1/2-1/2"]
[ECO "B90"]
[WhiteElo "2263"]
[BlackElo "2511"]
[Annotator "RC"]
[PlyCount "27"]
[EventDate "2023.10.26"]
[EventType "swiss"]
[EventCountry "ESP"]
[SourceTitle "playchess.com"]
[Source "ChessBase"]
[SourceQuality "1"]
[TimeControl "5400+30"]

1. e4 {[%emt 0:01:09]} c5 {[%emt 0:11:56]} 2. Nf3 {[%emt 0:00:07]} d6 {[%emt 0:00:15]} 3. d4 {[%emt 0:00:50]} cxd4 {[%emt 0:00:22]} 4. Nxd4 {[%emt 0:00:01]} Nf6 {[%emt 0:00:08]} 5. Nc3 {[%emt 0:00:05]} a6 {[%emt 0:00:18]} 6. h3 {[%emt 0:00:05]} g6 {[%emt 0:06:35]} 7. Be3 {[%emt 0:00:29]} h5 {[%emt 0:08:47]} 8. Qd2 {[%emt 0:04:06]} b5 {[%emt 0:05:24]} 9. a4 {[%emt 0:04:51]} bxa4 {[%emt 0:09:22]} 10. Rxa4 {[%emt 0:01:12]} Bg7 {[%emt 0:12:40]} 11. Bd3 {[%emt 0:03:53]} Nbd7 {[%emt 0:04:20]} 12. Nb3 {[%emt 0:03:31]} O-O {[%emt 0:12:19]} 13. O-O {[%emt 0:13:11]} Ne5 {[%emt 0:01:28]} 14. Be2 {[%emt 0:03:34]} 1/2-1/2